bitfinex/quotes_SOLUSD_20250710
["timestamp","ask_amount","ask_price","bid_price","bid_amount"]
[1752147788322,10.24339052,157.78,157.74,3.7052971]
[1752147789825,10.24339052,157.78,157.72,32.24]
[1752147790023,3.7052971,157.77,157.73,3.7052971]
[1752147793623,6.33874239,157.76,157.73,3.7052971]
[1752147799438,6.33834062,157.77,157.73,3.7052971]
[1752147799643,10.04363772,157.77,157.73,3.7052971]
[1752147801849,6.33834062,157.77,157.73,3.7052971]
[1752147802143,6.33834062,157.77,157.72,6.40020981]
[1752147802445,6.33834062,157.77,157.73,3.7052971]
[1752147806653,10.04363772,157.77,157.73,3.7052971]
[1752147807629,10.04363772,157.77,157.72,0.06]
[1752147807837,10.04363772,157.77,157.73,3.7052971]
[1752147808746,10.04363772,157.77,157.72,6.40032228]
[1752147808949,10.04363772,157.77,157.73,3.7052971]
[1752147810530,6.33834062,157.77,157.73,3.7052971]
[1752147810948,12.95986786,157.77,157.73,3.7052971]
[1752147812252,12.95986786,157.77,157.73,10.04523469]
[1752147812432,12.95986786,157.77,157.74,3.7052971]
[1752147812627,6.33834062,157.77,157.73,6.33993759]
[1752147812829,12.96117223,157.77,157.74,3.7052971]
[1752147813648,12.96117223,157.77,157.72,6.40018043]
[1752147813849,12.96117223,157.77,157.74,3.7052971]
[1752147815557,12.96117223,157.77,157.73,3.7052971]
[1752147817633,12.96117223,157.77,157.72,0.06]
[1752147817829,12.96117223,157.77,157.73,3.7052971]
[1752147818460,6.62283161,157.76,157.73,3.7052971]
[1752147818644,12.96117223,157.77,157.73,3.7052971]
[1752147819555,6.62283161,157.76,157.73,3.7052971]
[1752147820473,12.96170165,157.76,157.73,3.7052971]
[1752147820650,6.33887004,157.76,157.72,3.7652971]
[1752147820852,12.97300264,157.76,157.72,3.7652971]
[1752147824666,12.97300264,157.76,157.72,10.10564373]
[1752147824971,12.97300264,157.76,157.73,3.7052971]
[1752147825270,6.33887004,157.76,157.73,3.7052971]
[1752147825638,12.97626701,157.76,157.73,3.7052971]
[1752147825839,6.33834062,157.77,157.73,3.7052971]
[1752147826039,6.63739826,157.76,157.73,3.7052971]
[1752147827069,6.63739826,157.76,157.72,6.40034663]
[1752147827264,6.63739826,157.76,157.73,3.7052971]
[1752147827859,12.97619415,157.76,157.73,3.7052971]
[1752147828165,6.33879589,157.76,157.73,3.7052971]
[1752147828557,12.96910416,157.76,157.73,3.7052971]
[1752147828753,6.33834062,157.77,157.73,3.7052971]
[1752147828952,6.63030957,157.76,157.73,3.7052971]
[1752147830273,6.63030957,157.76,157.72,6.40034663]
[1752147830447,12.96905589,157.76,157.73,3.7052971]
[1752147830648,6.33874632,157.76,157.73,3.7052971]
[1752147831162,12.96905823,157.76,157.73,3.7052971]
[1752147831363,6.33874632,157.76,157.73,3.7052971]
[1752147831546,12.98611648,157.77,157.73,3.7052971]
[1752147831742,6.6476776,157.76,157.73,3.7052971]
[1752147833279,6.33880348,157.76,157.73,3.7052971]
[1752147833652,6.64780029,157.76,157.73,3.7052971]
[1752147837578,6.64780029,157.76,157.73,10.04523023]
[1752147838081,6.64780029,157.77,157.75,3.7052971]
[1752147838278,0.2,157.78,157.76,3.7052971]
[1752147838470,6.84780029,157.78,157.76,3.7052971]
[1752147838778,0.2,157.78,157.76,3.7052971]
[1752147838979,6.84780029,157.78,157.76,3.7052971]
[1752147839279,0.2,157.78,157.76,3.7052971]
[1752147841292,0.2,157.78,157.77,3.7052971]
[1752147841983,0.2,157.78,157.77,10.04363772]
[1752147848093,0.2,157.78,157.77,42.20363772]
[1752147861189,0.2,157.78,157.77,38.49834062]
[1752147861381,0.2,157.78,157.77,42.20363772]
[1752147874895,0.2,157.78,157.77,68.20363772]
[1752147895532,0.2,157.78,157.77,156.20363772]
[1752147898033,6.33567537,157.84,157.82,32.12]
[1752147898328,6.76074546,157.83,157.82,32.12]
[1752147898510,6.76074546,157.84,157.82,35.8252971]
[1752147898706,1.6078,157.85,157.83,3.7052971]
[1752147898907,1.6078,157.85,157.84,3.7052971]
[1752147899131,8.36905691,157.85,157.84,3.7052971]
[1752147899520,8.36905691,157.85,157.84,35.8252971]
[1752147900419,6.76125691,157.86,157.84,35.8252971]
[1752147900619,6.76125691,157.87,157.85,3.7052971]
[1752147900820,12.44948088,157.88,157.86,3.7052971]
[1752147901129,6.76246303,157.87,157.86,3.7052971]
[1752147901538,6.76246303,157.87,157.84,32.12]
[1752147901719,6.76246303,157.87,157.86,3.7052971]
[1752147902316,6.86246303,157.88,157.86,35.8252971]
[1752147902527,0.1,157.88,157.87,3.7052971]
[1752147902823,6.86334722,157.88,157.86,32.12]
[1752147903027,6.86334722,157.88,157.86,35.8252971]
[1752147903636,0.1,157.88,157.86,35.8252971]
[1752147903839,0.1,157.88,157.86,32.12]
[1752147904040,6.86334722,157.88,157.86,35.8252971]
[1752147904250,0.1,157.88,157.86,35.8252971]
[1752147909147,0.1,157.88,157.87,3.7052971]
[1752147913327,0.1,157.88,157.86,32.12]
[1752147913535,0.1,157.88,157.86,35.8252971]
[1752147921259,6.4340081,157.88,157.86,32.12]
[1752147921558,10.1393052,157.88,157.84,35.8052971]
[1752147925570,6.4340081,157.88,157.84,35.8052971]
[1752147925775,0.1,157.88,157.86,3.7052971]
[1752147926143,0.1,157.88,157.86,35.8052971]
[1752147926448,0.1,157.88,157.87,3.7052971]
[1752147927972,0.1,157.88,157.87,10.03962281]
[1752147930974,0.1,157.88,157.87,98.03962281]
[1752147941506,13.19056103,157.95,157.87,98.03962281]
[1752147941687,13.19056103,157.95,157.92,3.7052971]
[1752147941900,13.19056103,157.95,157.92,32.08]
[1752147942110,6.33126849,157.95,157.92,32.08]
[1752147942715,10.03656559,157.95,157.92,32.08]
[1752147944517,10.03656559,157.95,157.91,35.7852971]
[1752147946398,6.33126849,157.95,157.91,35.7852971]
[1752147951728,10.03656559,157.95,157.91,35.7852971]
[1752147953936,10.03656559,157.95,157.91,32.08]
[1752147954228,10.03656559,157.95,157.91,35.7852971]
[1752147955218,6.36071663,157.96,157.91,35.7852971]
[1752147955423,3.7052971,157.95,157.91,35.7852971]
[1752147956436,6.33151829,157.94,157.91,35.7852971]
[1752147957238,6.33151829,157.94,157.91,35.8152971]
[1752147962331,6.39111744,157.95,157.91,35.8152971]
[1752147964145,6.39111744,157.95,157.91,32.11]
[1752147964328,6.39111744,157.95,157.91,35.8152971]
[1752147964947,0.06,157.95,157.91,35.8152971]
[1752147966225,0.06,157.95,157.91,32.11]
[1752147966433,0.06,157.95,157.91,35.8152971]
[1752147967243,6.92229008,157.95,157.91,35.8152971]
[1752147967737,10.62758718,157.95,157.91,32.11]
[1752147968544,3.7052971,157.94,157.91,0.03]
[1752147968734,3.7052971,157.92,157.91,0.03]
[1752147969132,10.03761726,157.92,157.91,0.03]
[1752147971541,3.7052971,157.93,157.91,0.03]
[1752147972146,10.57926422,157.93,157.91,0.03]
[1752147972351,3.7052971,157.93,157.91,0.03]
[1752147972851,13.20830883,157.93,157.91,0.03]
[1752147973029,10.03748209,157.93,157.91,0.03]
[1752147973428,6.33218499,157.93,157.91,0.03]
[1752147973629,10.03748209,157.93,157.91,0.03]
[1752147977144,10.5638698,157.92,157.91,0.03]
[1752147977942,16.89618996,157.92,157.91,0.03]
[1752147980144,10.03761726,157.92,157.91,0.03]
[1752147980451,16.89660216,157.92,157.91,0.03]
[1752147985338,13.19130506,157.92,157.91,0.03]
[1752147985663,6.33232016,157.92,157.91,0.03]
[1752147986657,0.06,157.94,157.91,3.7352971]
[1752147986856,0.06,157.94,157.93,3.7052971]
[1752147987668,0.06,157.94,157.91,0.03]
[1752147987975,10.09683236,157.94,157.91,0.03]
[1752147990174,0.06,157.94,157.91,0.03]
[1752147991586,6.39151829,157.94,157.91,0.03]
[1752147992973,16.93649121,157.94,157.91,0.03]
[1752147993180,10.09681539,157.94,157.91,0.03]
[1752147993673,3.7052971,157.93,157.91,0.03]
[1752147993873,6.39151829,157.94,157.91,0.03]
[1752147993874,10.54566038,157.92,157.91,0.03]
[1752147994668,3.7052971,157.92,157.91,0.03]
[1752147994876,10.54566038,157.92,157.91,0.03]
[1752147995268,3.7052971,157.92,157.91,0.03]
[1752147995472,10.54566038,157.92,157.91,0.03]
[1752147995662,16.87798054,157.92,157.91,0.03]
[1752147997874,10.03761726,157.92,157.91,0.03]
[1752148000084,10.03729681,157.93,157.91,0.03]
[1752148000281,3.7052971,157.93,157.91,0.03]
[1752148000492,10.53104872,157.93,157.91,0.03]
[1752148001097,6.82575162,157.93,157.91,0.03]
[1752148001293,6.82575162,157.93,157.91,3.7352971]
[1752148003694,6.88575162,157.94,157.91,3.7352971]
[1752148004681,0.06,157.94,157.91,3.7352971]
[1752148005085,0.06,157.94,157.92,3.7052971]
[1752148005999,0.06,157.94,157.92,10.03761099]
[1752148006296,0.06,157.94,157.93,3.7052971]
[1752148016881,0.06,157.94,157.91,0.03]
[1752148017087,0.06,157.94,157.92,3.7052971]
[1752148017404,0.06,157.94,157.91,0.03]
[1752148017607,0.06,157.94,157.92,3.7052971]
[1752148017997,0.06,157.94,157.91,0.03]
[1752148017998,3.7652971,157.94,157.91,0.03]
[1752148018908,6.3319192,157.93,157.91,0.03]
[1752148021131,0.06,157.94,157.91,0.03]
[1752148021322,3.7652971,157.94,157.91,0.03]
[1752148022309,3.7052971,157.93,157.91,0.03]
[1752148022627,3.7052971,157.92,157.91,0.03]
[1752148023215,10.03761726,157.92,157.91,0.03]
[1752148023423,10.0373951,157.93,157.91,0.03]
[1752148028233,6.39160134,157.94,157.91,0.03]
[1752148028437,0.06,157.94,157.91,3.7352971]
[1752148039265,6.9011825,157.94,157.91,3.7352971]
[1752148041152,13.23283105,157.94,157.91,0.03]
[1752148041352,3.7052971,157.92,157.91,0.03]
[1752148041558,10.03761726,157.92,157.91,0.03]
[1752148044446,3.7052971,157.92,157.91,0.03]
[1752148044763,10.03735756,157.93,157.91,0.03]
[1752148047343,3.7052971,157.92,157.91,0.03]
[1752148048865,10.03761726,157.92,157.91,0.03]
[1752148050860,3.7052971,157.92,157.91,0.03]
[1752148051158,10.03740507,157.93,157.91,0.03]
[1752148052734,0.06,157.94,157.91,3.7352971]
[1752148054368,0.06,157.94,157.91,10.06795852]
[1752148054539,0.06,157.94,157.91,3.7352971]
[1752148055058,6.87481692,157.94,157.91,0.03]
[1752148056370,13.20648772,157.94,157.91,0.03]
[1752148058763,16.91178482,157.94,157.91,0.03]
[1752148058953,6.81481692,157.93,157.91,0.03]
[1752148059148,10.0969679,157.94,157.91,0.03]
[1752148059468,6.82730628,157.93,157.91,0.03]
[1752148059841,6.33232016,157.92,157.91,0.03]
[1752148061147,6.3319192,157.93,157.91,0.03]
[1752148061367,6.83393654,157.92,157.91,0.03]
[1752148061953,10.09693902,157.94,157.91,0.03]
[1752148061954,6.83393654,157.93,157.91,0.03]
[1752148062160,6.83393654,157.92,157.91,0.03]
[1752148072482,13.1662567,157.92,157.91,0.03]
[1752148073371,16.8715538,157.92,157.91,0.03]
[1752148080484,16.8715538,157.92,157.85,1.5928]
[1752148080485,99.75759146,157.92,157.82,10.0414752]
[1752148080669,99.75759146,157.92,157.82,36.0414752]
[1752148080670,3.7052971,157.86,157.82,36.0414752]
[1752148081062,6.83393654,157.87,157.85,3.7052971]
[1752148081265,3.7052971,157.9,157.85,3.7052971]
[1752148081486,6.82232006,157.89,157.85,3.7052971]
[1752148081683,6.82232006,157.88,157.85,3.7052971]
[1752148081881,6.82232006,157.89,157.85,3.7052971]
[1752148082093,6.82232006,157.88,157.85,3.7052971]
[1752148082294,13.15603236,157.89,157.86,3.7052971]
[1752148082990,6.82232006,157.89,157.86,3.7052971]
[1752148083291,10.52761716,157.89,157.85,3.7052971]
[1752148083785,6.82232006,157.89,157.85,3.7052971]
[1752148084086,6.82232006,157.89,157.86,3.7052971]
[1752148084288,13.15584437,157.89,157.86,3.7052971]
[1752148085069,10.0376694,157.92,157.87,3.7052971]
[1752148085270,6.78589653,157.91,157.87,3.7052971]
[1752148085671,6.78589653,157.91,157.88,3.7052971]
[1752148086474,13.11865026,157.91,157.86,6.33458369]
[1752148086674,13.11865026,157.91,157.87,3.7052971]
[1752148086893,13.11865026,157.91,157.87,5.78155899]
[1752148087083,18.90020925,157.91,157.87,5.78155899]
[1752148087395,6.78589653,157.9,157.86,5.78155899]
[1752148087766,12.56745552,157.9,157.86,5.78155899]
[1752148088365,12.11503737,157.9,157.86,5.78155899]
[1752148089680,6.33347838,157.9,157.86,5.78155899]
[1752148090892,13.13257821,157.9,157.86,5.78155899]
[1752148091194,6.33347838,157.9,157.86,5.78155899]
[1752148093429,12.58003543,157.9,157.86,5.78155899]
[1752148093611,5.78155899,157.89,157.85,5.78155899]
[1752148093802,6.79859821,157.9,157.85,5.78155899]
[1752148094098,5.78155899,157.89,157.85,5.78155899]
[1752148095383,5.78155899,157.89,157.84,5.78155899]
[1752148095698,6.33392449,157.88,157.84,5.78155899]
[1752148095896,6.33392449,157.88,157.82,5.78155899]
[1752148095897,5.78155899,157.87,157.82,5.78155899]
[1752148096094,5.78155899,157.86,157.82,5.78155899]
[1752148098402,12.11646575,157.86,157.82,5.78155899]
[1752148099099,12.11646575,157.86,157.81,5.78155899]
[1752148099292,5.78155899,157.85,157.81,5.78155899]
[1752148100593,12.11708864,157.84,157.78,6.3677752]
[1752148100907,24.98469342,157.86,157.78,6.3677752]
[1752148101091,6.33504456,157.86,157.83,5.78155899]
[1752148101407,26.0,157.88,157.85,5.78155899]
[1752148101996,26.0,157.88,157.81,32.0]
[1752148101997,11.85275899,157.9,157.86,5.78155899]
[1752148102178,31.78155899,157.9,157.86,5.78155899]
[1752148102385,31.78155899,157.9,157.85,5.78155899]
[1752148102585,6.33354303,157.89,157.85,5.78155899]
[1752148103181,6.33354303,157.89,157.86,5.78155899]
[1752148105087,32.33315769,157.9,157.88,5.78155899]
[1752148105513,32.33315769,157.9,157.87,5.78155899]
[1752148105703,26.0,157.9,157.87,5.78155899]
[1752148106010,38.11491441,157.9,157.86,5.78155899]
[1752148106223,32.33335542,157.9,157.86,5.78155899]
[1752148108314,38.11491441,157.9,157.86,5.78155899]
[1752148109382,32.33335542,157.9,157.86,5.78155899]
[1752148109587,38.11491441,157.9,157.86,5.78155899]
[1752148112116,32.33335542,157.9,157.86,5.78155899]
[1752148114212,32.33335542,157.9,157.85,6.33512575]
[1752148114399,32.33335542,157.9,157.84,0.03]
[1752148114604,32.33335542,157.9,157.86,5.78155899]
[1752148115016,38.11491441,157.9,157.86,5.78155899]
[1752148120321,38.11491441,157.9,157.84,0.03]
[1752148120520,38.11491441,157.9,157.86,5.78155899]
[1752148120913,36.03425248,157.9,157.86,3.70089706]
[1752148121517,32.33335542,157.9,157.86,3.70089706]
[1752148121819,36.03425248,157.9,157.86,3.70089706]
[1752148122121,6.80115881,157.89,157.86,3.70089706]
[1752148126320,0.06,157.91,157.88,3.70089706]
[1752148126536,6.7958751,157.9,157.89,3.70089706]
[1752148127053,0.06,157.91,157.89,3.70089706]
[1752148127405,0.06,157.91,157.9,3.70089706]
[1752148127905,0.06,157.91,157.9,10.03401928]
[1752148128940,0.06,157.91,157.9,12.11171323]
[1752148141754,0.06,157.91,157.87,88.0]
[1752148141934,0.06,157.91,157.89,5.77859101]
[1752148144653,0.06,157.91,157.9,5.77859101]
[1752148145546,0.06,157.91,157.88,31.98]
[1752148145755,0.06,157.91,157.89,5.77859101]
[1752148145962,0.06,157.91,157.88,31.98]
[1752148146254,0.06,157.91,157.89,5.77859101]
[1752148148061,0.06,157.91,157.9,5.77859101]
[1752148149165,0.06,157.91,157.88,38.31385503]
[1752148149461,0.06,157.91,157.9,5.77859101]
[1752148150566,0.06,157.91,157.9,12.11171323]
[1752148150859,0.06,157.91,157.9,10.03170352]
[1752148153076,0.06,157.91,157.9,3.6985813]
[1752148154082,0.06,157.91,157.9,10.03170352]
[1752148157563,0.06,157.91,157.9,24.96819029]
[1752148158867,0.06,157.91,157.9,100.25096136]
[1752148159186,0.06,157.91,157.9,132.23096136]
[1752148160286,0.06,157.91,157.9,138.00663893]
[1752148160785,0.06,157.91,157.9,132.23096136]
[1752148168694,0.06,157.91,157.9,138.00663893]
[1752148168998,0.06,157.91,157.9,132.23096136]
[1752148176609,0.06,157.91,157.9,132.26096136]
[1752148178307,0.06,157.91,157.9,138.03663893]
[1752148178882,0.06,157.91,157.9,144.96663769]
[1752148181906,0.06,157.91,157.9,130.18155457]
[1752148182089,0.06,157.91,157.9,126.48528379]
[1752148182295,0.06,157.91,157.9,130.18155457]
[1752148201257,0.06,157.94,157.91,0.14216157]
[1752148201434,0.06,157.94,157.93,3.69627078]
[1752148202229,0.06,157.94,157.93,35.65627078]
[1752148204153,0.06,157.94,157.93,41.98818998]
[1752148218860,0.06,157.94,157.93,3.69627078]
[1752148219160,6.93533305,157.94,157.91,31.96]
[1752148219347,6.93418406,157.94,157.93,3.69627078]
[1752148219534,0.06,157.94,157.93,3.69627078]
[1752148221255,0.06,157.94,157.93,10.02818998]
[1752148223362,0.06,157.94,157.93,3.69627078]
[1752148224563,0.06,157.94,157.93,10.02818998]
[1752148227549,0.06,157.94,157.93,41.98818998]
[1752148229171,0.06,157.94,157.93,38.2919192]
[1752148229364,0.06,157.94,157.93,41.98818998]
[1752148247569,0.06,157.94,157.93,41.87960562]
[1752148253570,0.06,157.94,157.93,129.87960562]
[1752148254381,0.06,157.94,157.93,130.02176719]
[1752148260522,0.06,157.94,157.9,0.03]
[1752148260808,0.06,157.94,157.91,31.94]
[1752148262189,5.35207078,157.93,157.9,0.03]
[1752148262384,3.69627078,157.91,157.9,0.03]
[1752148262989,3.69627078,157.92,157.9,0.03]
[1752148263404,10.02877313,157.92,157.9,0.03]
[1752148263903,3.69627078,157.91,157.9,0.03]
[1752148265386,10.02899195,157.91,157.9,0.03]
[1752148268502,16.18719195,157.91,157.9,0.03]
[1752148268710,22.97340912,157.91,157.9,0.03]
[1752148269412,16.18719195,157.91,157.9,0.03]
[1752148273791,12.49092117,157.91,157.9,0.03]
[1752148274008,16.18719195,157.91,157.9,0.03]
[1752148290821,12.49092117,157.91,157.9,0.03]
[1752148291017,16.18719195,157.91,157.9,0.03]
[1752148291814,10.02899195,157.91,157.9,0.03]
[1752148293619,10.02899195,157.91,157.9,1e-08]
[1752148293833,16.78302382,157.91,157.9,1e-08]
[1752148294406,23.26732382,157.91,157.9,1e-08]
[1752148297127,6.33272117,157.91,157.9,1e-08]
[1752148297332,38.29272117,157.91,157.9,1e-08]
[1752148299140,38.29247987,157.92,157.9,1e-08]
[1752148302446,10.48999267,157.91,157.9,1e-08]
[1752148302746,3.69627078,157.91,157.9,1e-08]
[1752148303137,10.4901524,157.91,157.9,1e-08]
[1752148304444,35.47252243,157.91,157.9,1e-08]
[1752148307136,31.77625165,157.91,157.9,1e-08]
[1752148310044,6.79388162,157.91,157.9,1e-08]
[1752148312147,13.12660279,157.91,157.9,1e-08]
[1752148312950,6.79388162,157.91,157.9,1e-08]
[1752148313550,6.79388162,157.91,157.9,3.69627079]
[1752148313741,6.79388162,157.92,157.9,3.69627079]
[1752148313953,6.85388162,157.93,157.91,3.69627078]
[1752148314254,6.85388162,157.93,157.92,3.69627078]
[1752148316162,0.06,157.93,157.92,3.69627078]
[1752148316753,0.06,157.93,157.9,1e-08]
[1752148316754,6.39200279,157.93,157.9,1e-08]
[1752148316959,6.39200279,157.93,157.91,5.7792219]
[1752148317313,6.39200279,157.93,157.9,5.77922191]
[1752148317432,6.39200279,157.93,157.9,1e-08]
[1752148317750,13.21155333,157.93,157.9,1e-08]
[1752148318450,18.99077523,157.93,157.9,1e-08]
[1752148318665,6.81955054,157.92,157.9,1e-08]
[1752148319438,6.33272117,157.91,157.9,1e-08]
[1752148322251,13.18873128,157.91,157.9,1e-08]
[1752148322457,6.33272117,157.91,157.9,1e-08]
[1752148328555,13.15056488,157.91,157.9,1e-08]
[1752148329355,6.33272117,157.91,157.9,1e-08]
[1752148330463,18.99004705,157.91,157.9,1e-08]
[1752148330663,13.21082515,157.91,157.9,1e-08]
[1752148330860,18.99004705,157.91,157.9,1e-08]
[1752148331177,37.63969591,157.91,157.9,1e-08]
[1752148340284,31.86047401,157.91,157.9,1e-08]
[1752148340469,13.21082515,157.91,157.9,1e-08]
[1752148340871,6.39272117,157.91,157.9,1e-08]
[1752148341272,13.18985445,157.91,157.9,1e-08]
[1752148342878,6.39272117,157.91,157.9,1e-08]
[1752148345172,0.06,157.91,157.9,1e-08]
[1752148346493,6.39272117,157.91,157.9,1e-08]
[1752148346683,13.18996994,157.91,157.9,1e-08]
[1752148347478,18.96919184,157.91,157.9,1e-08]
[1752148347882,37.6188407,157.91,157.9,1e-08]
[1752148349889,31.8396188,157.91,157.9,1e-08]
[1752148350882,37.6188407,157.91,157.9,1e-08]
[1752148353702,31.8396188,157.91,157.9,1e-08]
[1752148354506,13.18996994,157.91,157.9,1e-08]
[1752148354684,31.8396188,157.91,157.9,1e-08]
[1752148354879,63.7996188,157.91,157.9,1e-08]
[1752148357902,45.14996994,157.91,157.9,1e-08]
[1752148360603,69.5788407,157.91,157.9,1e-08]
[1752148362896,63.7996188,157.91,157.9,1e-08]
[1752148365201,38.81724877,157.91,157.9,1e-08]
[1752148365515,0.06,157.91,157.9,1e-08]
[1752148366210,0.06,157.91,157.9,5.77922191]
[1752148373802,0.06,157.91,157.9,1e-08]
[1752148374022,0.06,157.91,157.9,5.77922191]
[1752148374715,0.06,157.91,157.9,1e-08]
[1752148374900,0.06,157.91,157.9,5.77922191]
[1752148379231,0.06,157.91,157.9,12.11234413]
[1752148380814,0.06,157.91,157.9,10.03033434]
[1752148397032,0.06,157.91,157.9,3.69721212]
[1752148397235,0.06,157.91,157.9,35.63721212]
[1752148398124,0.06,157.91,157.9,31.94000001]
[1752148398327,0.06,157.91,157.9,35.63721212]
[1752148399827,0.06,157.91,157.9,1e-08]
[1752148400138,0.06,157.91,157.9,3.69721212]
[1752148408844,0.06,157.91,157.9,1e-08]
[1752148409070,3.75721211,157.91,157.9,1e-08]
[1752148409346,30.78861324,157.91,157.9,1e-08]
[1752148411049,37.12133441,157.91,157.9,1e-08]
[1752148420740,69.06133441,157.91,157.9,1e-08]
[1752148424457,95.06133441,157.91,157.9,1e-08]
[1752148424657,69.06133441,157.91,157.9,1e-08]
[1752148435765,68.98487999,157.91,157.9,1e-08]
[1752148439288,31.84716788,157.91,157.9,1e-08]
[1752148439469,67.50437999,157.91,157.9,1e-08]
[1752148439975,35.54437999,157.91,157.9,1e-08]
[1752148440281,67.50437999,157.91,157.9,1e-08]
[1752148440767,31.84716788,157.91,157.9,1e-08]
[1752148440968,67.50437999,157.91,157.9,1e-08]
[1752148444185,60.69958214,157.91,157.9,1e-08]
[1752148446387,67.53984621,157.91,157.9,1e-08]
[1752148447489,67.51984621,157.91,157.9,1e-08]
[1752148449384,44.64964886,157.87,157.84,0.03]
[1752148449585,22.34686097,157.85,157.84,0.03]
[1752148449990,18.64964886,157.85,157.84,0.03]
[1752148450367,28.68198925,157.85,157.84,0.03]
[1752148451295,35.54186095,157.85,157.84,0.03]
[1752148452092,28.68198925,157.85,157.84,0.03]
[1752148453192,6.82948731,157.85,157.84,0.03]
[1752148454497,38.27489639,157.86,157.84,0.03]
[1752148454498,6.33489639,157.86,157.84,0.03]
[1752148454672,45.12505121,157.86,157.84,0.03]
[1752148454880,6.33447202,157.87,157.84,3.72721211]
[1752148455083,31.96,157.86,157.84,3.72721211]
[1752148455586,38.29447202,157.87,157.84,3.72721211]
[1752148455787,6.83092391,157.86,157.84,3.72721211]
[1752148456303,31.96,157.87,157.84,3.72721211]
[1752148456500,6.33401581,157.88,157.85,3.69721211]
[1752148456803,6.83174817,157.87,157.85,3.69721211]
[1752148457180,6.83174817,157.87,157.84,0.03]
[1752148457500,6.83174817,157.87,157.85,3.69721211]
[1752148458197,38.79174817,157.88,157.85,3.69721211]
[1752148458408,6.83174817,157.87,157.86,3.69721211]
[1752148458904,6.83174817,157.87,157.84,6.36550329]
[1752148459108,6.83174817,157.87,157.86,3.69721211]
[1752148461600,31.96,157.88,157.86,3.69721211]
[1752148462902,31.96,157.88,157.85,3.69721211]
[1752148463302,31.94,157.88,157.85,3.69721211]
[1752148463503,31.94,157.88,157.84,6.36550329]
[1752148463806,31.94,157.88,157.85,3.69721211]
[1752148464008,31.94,157.88,157.86,3.69721211]
[1752148464209,56.92333646,157.89,157.86,3.69721211]
[1752148466423,56.92333646,157.89,157.84,6.36550329]
[1752148466629,56.92333646,157.89,157.86,3.69721211]
[1752148467299,56.92333646,157.89,157.84,6.36550329]
[1752148467512,56.92333646,157.89,157.86,3.69721211]
[1752148468147,28.68054857,157.89,157.84,0.03]
[1752148468315,6.83087793,157.88,157.84,0.03]
[1752148468518,6.83087793,157.88,157.85,3.69721211]
[1752148470617,6.83087793,157.88,157.84,0.03]
[1752148470618,6.33432571,157.87,157.84,3.72721211]
[1752148470921,22.34686097,157.85,157.84,0.03]
[1752148471154,61.1177389,157.85,157.84,0.03]
[1752148472632,67.45286718,157.85,157.84,0.03]
[1752148472920,69.54387525,157.85,157.84,0.03]
[1752148489157,69.54387525,157.85,157.84,1e-08]
[1752148490955,75.33209543,157.85,157.84,1e-08]
[1752148491157,44.64964886,157.79,157.78,0.03]
[1752148491338,88.73540627,157.79,157.78,0.03]
[1752148491664,31.96,157.8,157.78,5.81822018]
[1752148491962,31.96,157.8,157.79,5.78822018]
[1752148493260,18.64964886,157.84,157.79,5.78822018]
[1752148493465,18.64964886,157.84,157.8,5.78822018]
[1752148493766,31.98,157.83,157.8,5.78822018]
[1752148494461,18.64964886,157.84,157.81,5.78822018]
[1752148494662,151.7998,157.88,157.78,0.03]
[1752148494663,18.64964886,157.86,157.83,5.78822018]
[1752148494966,31.98,157.85,157.83,3.70245018]
[1752148496338,38.31534067,157.85,157.83,3.70245018]
[1752148496866,38.31534067,157.85,157.83,5.78555414]
[1752148497451,38.31534067,157.85,157.8,7.94486944]
[1752148497765,38.31534067,157.85,157.83,5.78555414]
[1752148498562,6.33534067,157.85,157.83,5.78555414]
[1752148498861,38.31534067,157.85,157.83,5.78555414]
[1752148500268,38.31534067,157.85,157.81,5.78555414]
[1752148500269,44.10089481,157.85,157.81,5.78555414]
[1752148501668,6.33593106,157.83,157.81,5.78555414]
[1752148502767,18.64964886,157.84,157.81,5.78555414]
[1752148502972,24.98535141,157.84,157.82,5.78555414]
[1752148503867,5.78555414,157.87,157.83,5.78555414]
[1752148504050,31.78510112,157.87,157.84,5.78555414]
[1752148504250,31.98,157.86,157.84,5.78555414]
[1752148504860,38.31490659,157.86,157.84,5.78555414]